fUSD/lending_fUSD_20240905
["ID","MTS","AMOUNT","RATE_DAILY","PERIOD"]
[337244522,1725541843500,-12178.28593014,0.00015,2]
[337244523,1725541843511,-11072.78688,0.00015,2]
[337244524,1725541843528,-1140.73692,0.00015,2]
[337244525,1725541843539,-2057.28,0.00015,2]
[337244526,1725541843551,-14829.77004963,0.00015,2]
[337244527,1725541843563,-647.46735558,0.00015,2]
[337244528,1725541843586,-302.23,0.00015,2]
[337244529,1725541843597,-300.1,0.00015,2]
[337244530,1725541843608,-307.38558639,0.00015,2]
[337244531,1725541843620,-274.264,0.00015,2]
[337244533,1725541843772,-309.865,0.00015,2]
[337244534,1725541843836,-1045.14,0.00015,2]
[337244536,1725541844239,-10484.87417333,0.00015,2]
[337244537,1725541844250,-659.44059965,0.00015,2]
[337244538,1725541844261,-827.37773051,0.00015,2]
[337244539,1725541844275,-641.85958326,0.00015,2]
[337244540,1725541844286,-732.03143009,0.00015,2]
[337244541,1725541844297,-536.28001313,0.00015,2]
[337244542,1725541844308,-30000.0,0.00015,2]
[337244546,1725541846340,-1710.75555846,0.00015,2]
[337244547,1725541846352,-926.66902096,0.00015,2]
[337244548,1725541846364,-305.0,0.00015,2]
[337244549,1725541846375,-1033.59720923,0.00015,2]
[337244550,1725541846397,-837.1615839,0.00015,2]
[337244551,1725541846408,-4506.06258621,0.00015,2]
[337244552,1725541846419,-1568.92074396,0.00015,2]
[337244553,1725541846430,-1221.72,0.00015,2]
[337244554,1725541846442,-456.80005735,0.00015,2]
[337244555,1725541846454,-3777.93287341,0.00015,2]
[337244556,1725541846468,-432.87434618,0.00015,2]
[337244557,1725541846479,-1286.10254155,0.00015,2]
[337244558,1725541846491,-6646.89595268,0.00015,2]
[337244559,1725541846501,-1654.41427958,0.00015,2]
[337244560,1725541846514,-789.18618,0.00015,2]
[337244561,1725541846525,-8563.99436159,0.00015,2]
[337244562,1725541846536,-270.462826,0.00015,2]
[337244563,1725541846547,-1748.9835148,0.00015,2]
[337244564,1725541846559,-515.25,0.00015,2]
[337244565,1725541846573,-690.60504577,0.00015,2]
[337244566,1725541846584,-2635.15652636,0.00015,2]
[337244567,1725541846595,-1073.61091901,0.00015,2]
[337244568,1725541846606,-1408.82174182,0.00015,2]
[337244569,1725541846617,-2192.36880359,0.00015,2]
[337244570,1725541846628,-1289.4108312,0.00015,2]
[337244571,1725541846640,-4107.87899242,0.00015,2]
[337244572,1725541846651,-452430.20922664,0.00015,2]
[337244573,1725541846662,-606.13570382,0.00015,2]
[337244574,1725541846673,-873.80203649,0.00015,2]
[337244580,1725541986244,150.21144922,0.00025,60]
[337244581,1725542005526,500.0,0.00025165,120]
[337244583,1725542099363,234.34,0.00012205,2]
[337244584,1725542112626,345.58,0.00010959,2]
[337244588,1725542237155,202.56,0.00013257,2]
[337244591,1725542435823,964.6088452,0.00027,120]
[337244593,1725542556759,1000.0,0.00013257,2]
[337244594,1725542602793,500.0,0.00026766,120]
[337244599,1725542704128,150.0,0.00013488,2]
[337244602,1725542712632,277.32562926,0.00013488,2]
[337244603,1725542714295,222.62,0.0001228,2]
[337244609,1725543031556,-436.64173545,0.00014113,2]
[337244663,1725543032275,-3268.84826455,0.00014113,2]
[337244664,1725543032284,-250.0,0.00014148,2]
[337244665,1725543032293,-250.0,0.00014148,2]
[337244666,1725543032302,-201.28,0.00014148,2]
[337244667,1725543032311,-990.62191593,0.00014544,2]
[337244668,1725543032321,-222.62,0.00014544,2]
[337244669,1725543032330,-3116.25588237,0.0001489,2]
[337244678,1725543037759,-344.90911763,0.0001489,2]
[337244679,1725543037770,-997.087,0.0001489,2]
[337244680,1725543037780,-12213.6403,0.000149,2]
[337244681,1725543037790,-202.56,0.00014914,2]
[337244682,1725543037800,-1000.0,0.00014914,2]
[337244683,1725543037809,-500.0,0.00014973,2]
[337244684,1725543037818,-156.68796985,0.0001498,3]
[337244685,1725543037827,-156.68796985,0.00014984,3]
[337244686,1725543037836,-156.68796985,0.00014989,3]
[337244687,1725543037845,-500.0,0.00014989,2]
[337244688,1725543037854,-500.0,0.00014989,2]
[337244689,1725543037863,-500.0,0.00014989,2]
[337244690,1725543037873,-500.0,0.00014989,2]
[337244691,1725543037882,-500.0,0.00014989,2]
[337244692,1725543037894,-500.0,0.00014989,2]
[337244693,1725543037903,-519.61258263,0.00014989,2]
[337244694,1725543037913,-500.0,0.00014989,2]
[337244695,1725543037922,-470.06390955,0.0001499,3]
[337244696,1725543037931,-8336.06318066,0.0001499,3]
[337244697,1725543037943,-5908.66883484,0.0001499,3]
[337244698,1725543037953,-4804.26852741,0.0001499,3]
[337244699,1725543037964,-6963.202218,0.0001499,3]
[337244707,1725543039566,-500.0,0.0001499,3]
[337244708,1725543039683,-16221.99328559,0.0001499,3]
[337244709,1725543039692,-1921.0,0.00014999,2]
[337244710,1725543039701,-281.036,0.00014999,2]
[337244711,1725543039712,-150.0,0.00014999,2]
[337244712,1725543039721,-11716.0,0.00014999,2]
[337244713,1725543039730,-213.33630603,0.00014999,2]
[337244714,1725543039739,-150.01,0.00014999,2]
[337244715,1725543039748,-500.0,0.00014999,2]
[337244716,1725543039757,-500.0,0.00014999,2]
[337244717,1725543039767,-500.0,0.00014999,2]
[337244718,1725543039775,-500.0,0.00014999,2]
[337244719,1725543039784,-500.0,0.00014999,2]
[337244720,1725543039793,-500.0,0.00014999,2]
[337244721,1725543039802,-500.0,0.00014999,2]
[337244722,1725543039811,-500.0,0.00014999,2]
[337244723,1725543039821,-500.0,0.00014999,2]
[337244724,1725543039830,-500.0,0.00014999,2]
[337244725,1725543039839,-500.0,0.00014999,2]
[337244726,1725543039849,-218.2,0.00014999,2]
[337244727,1725543039858,-500.0,0.00014999,2]
[337244728,1725543039867,-500.0,0.00014999,2]
[337244729,1725543039876,-500.0,0.00014999,2]
[337244730,1725543039887,-500.0,0.00014999,2]
[337244731,1725543039896,-500.0,0.00014999,2]
[337244732,1725543039905,-500.0,0.00014999,2]
[337244733,1725543039915,-500.0,0.00014999,2]
[337244734,1725543039924,-500.0,0.00014999,2]
[337244735,1725543039933,-500.0,0.00014999,2]
[337244736,1725543039942,-500.0,0.00014999,2]
[337244737,1725543039951,-500.0,0.00014999,2]
[337244740,1725543040136,-500.0,0.00014999,2]
[337244741,1725543040154,-500.0,0.00014999,2]
[337244742,1725543040163,-554.65062805,0.00014999,2]
[337244743,1725543040173,-500.0,0.00014999,2]
[337244744,1725543040182,-500.0,0.00014999,2]
[337244745,1725543040191,-500.0,0.00014999,2]
[337244746,1725543040200,-500.0,0.00014999,2]
[337244747,1725543040209,-500.0,0.00014999,2]
[337244748,1725543040219,-500.0,0.00014999,2]
[337244749,1725543040227,-500.0,0.00014999,2]
[337244750,1725543040237,-500.0,0.00014999,2]
[337244751,1725543040246,-365.3319862,0.00014999,2]
[337244752,1725543040254,-150.0,0.00014999,2]
[337244753,1725543040264,-523.0,0.00015,2]
[337244754,1725543040273,-404432.25766428,0.00015,2]
[337244755,1725543040282,-4142855.45333422,0.00015,2]
[337244762,1725543042580,-1000.0,0.00015,2]
[337244766,1725543043453,-4078.9714258,0.00015,2]
[337244767,1725543043464,-38532.7306735,0.00015,2]
[337244768,1725543043475,-8679.59506081,0.00015,2]
[337244769,1725543043486,-1011.21766666,0.00015,2]
[337244770,1725543043501,-391.22403067,0.00015,2]
[337244771,1725543043512,-1605.35180376,0.00015,2]
[337244780,1725543045616,-3648.9525255,0.00015,2]
[337244781,1725543045681,-187718.37418976,0.00015,2]
[337244782,1725543045744,-2660.46376001,0.00015,2]
[337244783,1725543045755,-1294.63954852,0.00015,2]
[337244784,1725543045767,-708.1,0.00015,2]
[337244786,1725543133424,400.0,0.000139,2]
[337244788,1725543204846,500.0,0.00025233,120]
[337244789,1725543215945,166.18,0.00010959,2]
[337244790,1725543223770,119.23437074,0.00013699,2]
[337244791,1725543223795,53.49562926,0.00013699,2]
[337244792,1725543235756,250.0,0.00013889,2]
[337244794,1725543265533,200.0,0.00013885,2]
[337244795,1725543267350,224.53,0.00011968,2]
[337244797,1725543330985,238.2,0.00013876,2]
[337244798,1725543431815,250.0,0.00013878,2]
[337244800,1725543455605,283.36,0.00013878,2]
[337244801,1725543561334,500.0,0.00013873,2]
[337244804,1725543675810,680.0,0.00013862,2]
[337244810,1725543729956,250.0,0.00013863,2]
[337244811,1725543756325,2751.0,0.0001385,2]
[337244812,1725543806708,500.0,0.00025247,120]
[337244813,1725543817274,169.18,0.00013845,2]
[337244814,1725543841668,1210.86,0.00013848,2]
[337244815,1725543853018,213.3,0.0001193,2]
[337244817,1725544001648,250.0,0.0001384,2]
[337244818,1725544034486,2122.8356903,0.00027,120]
[337244826,1725544226332,456.0,0.00013861,2]
[337244834,1725544231667,-213.3,0.00014194,2]
[337244835,1725544231676,-86.3900001,0.00014571,2]
[337244836,1725544231687,-97.6099999,0.00014571,2]
[337244837,1725544231696,-283.36,0.00014572,2]
[337244838,1725544231705,-150.0,0.00014712,2]
[337244839,1725544231714,-150.0,0.00014726,2]
[337244840,1725544231723,-150.0,0.00014734,2]
[337244841,1725544231732,-1500.0,0.00014735,2]
[337244842,1725544231742,-150.0,0.00014747,2]
[337244843,1725544231751,-150.0,0.00014748,2]
[337244844,1725544231760,-606.64,0.00014748,2]
[337244845,1725544231769,-885.9,0.00014748,2]
[337244846,1725544231779,-2523.74,0.00014748,2]
[337244847,1725544231790,-499.99,0.00014748,2]
[337244848,1725544231799,-1689.48,0.00014748,2]
[337244849,1725544231808,-150.0,0.0001475,2]
[337244850,1725544231818,-150.0,0.00014758,2]
[337244851,1725544231827,-150.0,0.00014766,2]
[337244852,1725544231837,-150.0,0.00014766,2]
[337244853,1725544231846,-150.0,0.00014775,2]
[337244854,1725544231856,-150.0,0.00014778,2]
[337244855,1725544231873,-150.0,0.00014784,2]
[337244856,1725544231883,-1500.0,0.00014795,2]
[337244857,1725544231893,-150.0,0.00014809,2]
[337244858,1725544231902,-150.0,0.00014813,2]
[337244859,1725544231912,-152.41,0.00014838,2]
[337244860,1725544231922,-150.0,0.00014847,2]
[337244861,1725544231931,-3000.0,0.0001485,2]
[337244862,1725544231941,-150.0,0.0001485,2]
[337244863,1725544231950,-150.0,0.00014853,2]
[337244864,1725544231960,-150.0,0.00014863,2]
[337244865,1725544231969,-150.0,0.00014864,2]
[337244866,1725544231978,-5.129084,0.00014882,2]
[337244867,1725544231990,-144.870916,0.00014882,2]
[337244869,1725544232000,-244.96995667,0.0001489,2]
[337244871,1725544232013,-1352.31901411,0.0001489,2]
[337244873,1725544232024,-382.31751455,0.0001489,2]
[337244875,1725544232035,-1601.38575,0.0001489,2]
[337244877,1725544232047,-3919.00776467,0.0001489,2]
[337244879,1725544232057,-303.03020671,0.0001489,2]
[337244881,1725544232066,-150.0,0.00014893,2]
[337244883,1725544232076,-150.0,0.00014897,2]
[337244885,1725544232086,-1005.1379,0.000149,2]
[337244887,1725544232096,-1117.0285,0.000149,2]
[337244889,1725544232108,-16149.689,0.000149,2]
[337244891,1725544232121,-346.80747253,0.000149,2]
[337244893,1725544232131,-134099.502,0.000149,2]
[337244895,1725544232141,-150.0,0.00014906,2]
[337244896,1725544232149,-150.0,0.00014916,2]
[337244898,1725544232159,-150.0,0.0001492,2]
[337244900,1725544232168,-5800.0,0.00014922,2]
[337244902,1725544232179,-5600.23926426,0.00014931,2]
[337244911,1725544232356,-199.76073574,0.00014931,2]
[337244912,1725544232369,-90.40262785,0.00014932,2]
[337244913,1725544232380,-59.59737215,0.00014932,2]
[337244914,1725544232389,-2709.12445021,0.0001494,2]
[337244915,1725544232401,-2000.0,0.0001494,2]
[337244916,1725544232412,-1090.87554979,0.0001494,2]
[337244917,1725544232422,-150.0,0.00014943,2]
[337244918,1725544232432,-150.0,0.00014944,2]
[337244919,1725544232442,-150.0,0.00014947,2]
[337244920,1725544232451,-150.0,0.00014947,2]
[337244921,1725544232461,-5800.0,0.00014948,2]
[337244922,1725544232470,-150.0,0.00014955,2]
[337244923,1725544232479,-5800.0,0.00014957,2]
[337244924,1725544232489,-5800.0,0.00014965,2]
[337244925,1725544232498,-150.0,0.00014965,2]
[337244926,1725544232507,-150.0,0.00014968,2]
[337244927,1725544232517,-500.0,0.00014973,2]
[337244928,1725544232526,-500.0,0.00014973,2]
[337244929,1725544232535,-5800.0,0.00014974,2]
[337244930,1725544232544,-2995.81189166,0.0001498,3]
[337244931,1725544232553,-8500.0,0.00014981,2]
[337244932,1725544232562,-28851.16467908,0.00014981,2]
[337244933,1725544232574,-6148.83532092,0.00014981,2]
[337244934,1725544232583,-1368.39449767,0.00014982,2]
[337244935,1725544232593,-4431.60550233,0.00014982,2]
[337244936,1725544232603,-1497.90594583,0.00014986,3]
[337244937,1725544232616,-150.0,0.00014987,2]
[337244938,1725544232625,-4493.71783749,0.00014989,3]
[337244939,1725544232634,-1041.62,0.00014989,2]
[337244940,1725544232643,-1041.62,0.00014989,2]
[337244941,1725544232652,-1041.62,0.00014989,2]
[337244942,1725544232662,-1041.62,0.00014989,2]
[337244943,1725544232671,-1041.62,0.00014989,2]
[337244944,1725544232680,-1041.62,0.00014989,2]
[337244945,1725544232689,-1041.62,0.00014989,2]
[337244946,1725544232698,-1041.62,0.00014989,2]
[337244947,1725544232707,-1041.62,0.00014989,2]
[337244948,1725544232716,-1041.62,0.00014989,2]
[337244949,1725544232726,-1041.62,0.00014989,2]
[337244950,1725544232735,-1041.62,0.00014989,2]
[337244951,1725544232744,-1041.62,0.00014989,2]
[337244952,1725544232753,-1041.62,0.00014989,2]
[337244953,1725544232762,-1041.62,0.00014989,2]
[337244954,1725544232774,-1041.62,0.00014989,2]
[337244955,1725544232783,-1041.62,0.00014989,2]
[337244956,1725544232793,-1041.62,0.00014989,2]
[337244957,1725544232802,-1041.62,0.00014989,2]
[337244958,1725544232811,-1041.62,0.00014989,2]
[337244959,1725544232820,-1041.62,0.00014989,2]
[337244960,1725544232829,-1041.62,0.00014989,2]
[337244961,1725544232838,-1041.62,0.00014989,2]
[337244962,1725544232847,-1041.68057039,0.00014989,2]
[337244963,1725544232856,-500.0,0.00014989,2]
[337244964,1725544232867,-28460.2129708,0.0001499,3]
[337244965,1725544232876,-2995.81189166,0.0001499,3]
[337244966,1725544232885,-8500.0,0.0001499,2]
[337244967,1725544232894,-500.0,0.0001499,2]
[337244968,1725544232904,-35000.0,0.0001499,2]
[337244969,1725544232913,-5800.0,0.0001499,2]
[337244970,1725544232922,-150.0,0.00014991,2]
[337244971,1725544232931,-150.0,0.00014996,2]
[337244972,1725544232940,-557.0,0.00014999,2]
[337244973,1725544232949,-1922.0,0.00014999,2]
[337244974,1725544232958,-150.01,0.00014999,2]
[337244975,1725544232967,-10420.47466559,0.00014999,2]
[337244976,1725544232978,-1000.0,0.00014999,2]
[337244977,1725544232986,-1000.0,0.00014999,2]
[337244978,1725544232996,-1000.0,0.00014999,2]
[337244979,1725544233005,-1000.0,0.00014999,2]
[337244980,1725544233018,-1000.0,0.00014999,2]
[337244981,1725544233028,-4929.34428087,0.00014999,2]
[337244982,1725544233040,-333.75235192,0.00014999,2]
[337244983,1725544233051,-943.74179789,0.00014999,2]
[337244984,1725544233063,-2293.16156932,0.00014999,2]
[337244985,1725544233072,-500.0,0.00014999,2]
[337244986,1725544233082,-3915.72349416,0.00014999,2]
[337244987,1725544233093,-250.0,0.00014999,2]
[337244988,1725544233104,-562.4996314,0.00014999,2]
[337244989,1725544233119,-465.87640099,0.00014999,2]
[337244990,1725544233130,-432.000004,0.00014999,2]
[337244991,1725544233143,-173.90046945,0.00014999,2]
[337244992,1725544233154,-150.0,0.00014999,2]
[337244993,1725544233168,-4932.0935169,0.00014999,2]
[337244994,1725544233179,-7921.92901194,0.00014999,2]
[337244995,1725544233191,-401.44091038,0.00014999,2]
[337244996,1725544233202,-5649.28327191,0.00014999,2]
[337244997,1725544233213,-846.08694448,0.00014999,2]
[337244998,1725544233225,-508.11036067,0.00014999,2]
[337244999,1725544233236,-662.53958649,0.00014999,2]
[337245000,1725544233248,-4272.78728964,0.00014999,2]
[337245001,1725544233260,-806.59811442,0.00014999,2]
[337245002,1725544233271,-889.15149544,0.00014999,2]
[337245003,1725544233283,-3106.15268631,0.00014999,2]
[337245007,1725544237754,-9935.92032832,0.00014999,2]
[337245008,1725544237763,-271.5221741,0.00014999,2]
[337245009,1725544237774,-282.02587164,0.00014999,2]
[337245010,1725544237784,-8088.46966597,0.00015,2]
[337245011,1725544237797,-6900.74336425,0.00015,2]
[337245012,1725544237808,-1608.02385753,0.00015,2]
[337245013,1725544237883,-5241.13075619,0.00015,2]
[337245014,1725544237985,-448883.1217119,0.00015,2]
[337245015,1725544237995,-4835272.61256917,0.00015,2]
[337245016,1725544238006,-6971.27123354,0.00015,2]
[337245017,1725544238078,-34226.54202327,0.00015,2]
[337245018,1725544239750,-391.85149748,0.00015,2]
[337245019,1725544239791,-5941.76094401,0.00015,2]
[337245020,1725544239803,-7565.55819903,0.00015,2]
[337245053,1725544243312,-16902.19956125,0.00015,2]
[337245054,1725544243324,-57111.49140569,0.00015,2]
[337245083,1725544244066,-603.89610208,0.00015,2]
[337245084,1725544244077,-2840.44852407,0.00015,2]
[337245085,1725544244088,-483.6,0.00015,2]
[337245086,1725544244104,-1145.3422122,0.00015,2]
[337245088,1725544245738,-11921.24897724,0.00015,2]
[337245089,1725544245818,-555.42039257,0.00015,2]
[337245092,1725544340127,172.73,0.00013699,2]
[337245093,1725544341387,212.63,0.00012294,2]
[337245098,1725544404852,508.851482,0.000256,120]
[337245111,1725544860812,328.3,0.00010959,2]
[337245112,1725544871039,201.99,0.00012025,2]
[337245126,1725545128694,6000.0,0.000135,2]
[337245138,1725545282972,250.0,0.00013906,2]
[337245141,1725545382990,340.03,0.00013907,2]
[337245142,1725545390314,191.89,0.00011989,2]
[337245143,1725545410112,250.0,0.00013907,2]
[337245144,1725545419629,325.9,0.00013923,2]
[337245159,1725545438102,-391.11391859,0.00013954,2]
[337245160,1725545438113,-244.08608141,0.00013954,2]
[337245161,1725545438123,-201.28,0.00013958,2]
[337245162,1725545438132,-191.89,0.00014253,2]
[337245163,1725545438142,-169.2,0.00014516,2]
[337245164,1725545438151,-679.99944149,0.00014602,2]
[337245165,1725545438161,-340.03,0.00014602,2]
[337245166,1725545438170,-151.09,0.00014616,2]
[337245167,1725545438180,-565.65,0.00014666,2]
[337245168,1725545438189,-150.0,0.00014735,2]
[337245169,1725545438200,-215.320398,0.00014795,2]
[337245170,1725545438210,-150.0,0.00014799,2]
[337245171,1725545438219,-2546.63,0.00014799,2]
[337245172,1725545438228,-78.7323791,0.000148,2]
[337245173,1725545438244,-5860.0,0.000148,2]
[337245215,1725545440081,-1115.8424209,0.000148,2]
[337245216,1725545440091,-883.39626976,0.000148,2]
[337245217,1725545440102,-1055.93285494,0.000148,2]
[337245218,1725545440218,-8041.5168753,0.000148,2]
[337245219,1725545440227,-347.58712222,0.000148,2]
[337245220,1725545440237,-3000.0,0.0001485,2]
[337245221,1725545440246,-150.0,0.00014852,2]
[337245222,1725545440256,-150.0,0.00014859,2]
[337245223,1725545440265,-303.03020671,0.0001488,2]
[337245224,1725545440274,-1500.0,0.00014885,2]
[337245225,1725545440284,-150.0,0.00014886,2]
[337245226,1725545440296,-284.0,0.00014886,2]
[337245227,1725545440307,-16149.689,0.00014889,2]
[337245228,1725545440316,-1117.0285,0.00014889,2]
[337245229,1725545440325,-3919.0078,0.0001489,2]
[337245230,1725545440334,-325.49375256,0.00014893,2]
[337245231,1725545440343,-325.49375256,0.00014896,2]
[337245232,1725545440352,-150.0,0.00014897,2]
[337245233,1725545440362,-346.80747253,0.000149,2]
[337245234,1725545440371,-439.24,0.000149,2]
[337245235,1725545440384,-532.2,0.000149,2]
[337245236,1725545440393,-422.04,0.000149,2]
[337245237,1725545440403,-422.04,0.000149,2]
[337245238,1725545440413,-532.2,0.000149,2]
[337245239,1725545440423,-488.8,0.000149,2]
[337245240,1725545440432,-325.49375256,0.000149,2]
[337245241,1725545440441,-2742.00665319,0.00014948,9]
[337245242,1725545440451,-1500.0,0.00014952,2]
[337245243,1725545440461,-500.0,0.00014973,2]
[337245244,1725545440471,-500.0,0.00014973,2]
[337245245,1725545440480,-640.6,0.00014979,2]
[337245246,1725545440489,-500.0,0.00014979,2]
[337245247,1725545440498,-500.0,0.00014979,2]
[337245248,1725545440508,-500.0,0.00014979,2]
[337245249,1725545440517,-1117.28,0.00014979,2]
[337245250,1725545440527,-500.0,0.00014979,2]
[337245251,1725545440536,-613.45560948,0.00014979,2]
[337245252,1725545440549,-3706.0,0.00014979,2]
[337245253,1725545440558,-37380.7550285,0.0001498,3]
[337245254,1725545440567,-279901.345167,0.0001498,3]
[337245256,1725545440576,-150.86,0.0001498,2]
[337245258,1725545440585,-878.0,0.00014986,2]
[337245260,1725545440594,-1117.28,0.00014988,2]
[337245261,1725545440604,-500.0,0.00014989,2]
[337245262,1725545440613,-500.0,0.00014989,2]
[337245263,1725545440622,-500.0,0.00014989,2]
[337245264,1725545440631,-500.0,0.00014989,2]
[337245265,1725545440642,-500.0,0.00014989,2]
[337245266,1725545440653,-509.03328161,0.00014989,2]
[337245267,1725545440663,-500.0,0.00014989,2]
[337245268,1725545440672,-500.0,0.00014989,2]
[337245269,1725545440681,-494.66,0.00014989,2]
[337245270,1725545440690,-500.0,0.00014989,2]
[337245271,1725545440700,-2746.03,0.00014989,2]
[337245272,1725545440709,-2746.03,0.00014989,2]
[337245273,1725545440717,-2746.03,0.00014989,2]
[337245274,1725545440726,-2746.03,0.00014989,2]
[337245275,1725545440735,-500.0,0.00014989,2]
[337245276,1725545440744,-500.0,0.00014989,2]
[337245277,1725545440753,-500.0,0.00014989,2]
[337245278,1725545440762,-500.0,0.00014989,2]
[337245279,1725545440770,-500.0,0.00014989,2]
[337245280,1725545440779,-500.0,0.00014989,2]
[337245281,1725545440788,-500.0,0.00014989,2]
[337245282,1725545440799,-2441.97,0.00014989,2]
[337245283,1725545440808,-500.0,0.00014989,2]
[337245284,1725545440817,-2441.97,0.00014989,2]
[337245285,1725545440826,-2441.97,0.00014989,2]
[337245286,1725545440835,-2441.97,0.00014989,2]
[337245287,1725545440844,-500.0,0.00014989,2]
[337245288,1725545440852,-380.54,0.00014989,2]
[337245289,1725545440862,-500.0,0.00014989,2]
[337245290,1725545440870,-500.0,0.00014989,2]
[337245291,1725545440879,-500.0,0.00014989,2]
[337245292,1725545440888,-500.0,0.00014989,2]
[337245293,1725545440897,-500.0,0.00014989,2]
[337245294,1725545440906,-500.0,0.00014989,2]
[337245295,1725545440915,-500.0,0.00014989,2]
[337245296,1725545440924,-500.0,0.00014989,2]
[337245297,1725545440933,-500.0,0.00014989,2]
[337245298,1725545440942,-1793.31,0.00014989,2]
[337245299,1725545440951,-1793.31,0.00014989,2]
[337245300,1725545440960,-1793.31,0.00014989,2]
[337245301,1725545440970,-1793.31,0.00014989,2]
[337245302,1725545440979,-694.77,0.00014989,2]
[337245303,1725545440988,-694.77,0.00014989,2]
[337245304,1725545440997,-694.77,0.00014989,2]
[337245305,1725545441006,-694.77,0.00014989,2]
[337245306,1725545441015,-500.0,0.00014989,2]
[337245307,1725545441024,-500.0,0.00014989,2]
[337245308,1725545441034,-500.0,0.00014989,2]
[337245309,1725545441043,-500.0,0.00014989,2]
[337245310,1725545441054,-500.0,0.00014989,2]
[337245311,1725545441063,-500.0,0.00014989,2]
[337245312,1725545441071,-500.0,0.00014989,2]
[337245313,1725545441081,-500.0,0.00014989,2]
[337245314,1725545441089,-500.0,0.00014989,2]
[337245315,1725545441099,-500.0,0.00014989,2]
[337245316,1725545441109,-500.0,0.00014989,2]
[337245317,1725545441118,-500.0,0.00014989,2]
[337245318,1725545441127,-500.0,0.00014989,2]
[337245319,1725545441136,-500.0,0.00014989,2]
[337245320,1725545441145,-500.0,0.00014989,2]
[337245321,1725545441155,-500.0,0.00014989,2]
[337245322,1725545441164,-500.0,0.00014989,2]
[337245323,1725545441173,-500.0,0.00014989,2]
[337245324,1725545441182,-500.0,0.00014989,2]
[337245325,1725545441192,-500.0,0.00014989,2]
[337245326,1725545441201,-1604.91,0.00014989,2]
[337245327,1725545441211,-1604.91,0.00014989,2]
[337245328,1725545441220,-1604.91,0.00014989,2]
[337245329,1725545441229,-1604.91,0.00014989,2]
[337245330,1725545441239,-500.0,0.00014989,2]
[337245331,1725545441248,-500.0,0.00014989,2]
[337245332,1725545441257,-500.0,0.00014989,2]
[337245333,1725545441266,-500.0,0.00014989,2]
[337245334,1725545441276,-1978.28,0.00014989,2]
[337245335,1725545441285,-1978.28,0.00014989,2]
[337245336,1725545441296,-1978.28,0.00014989,2]
[337245337,1725545441306,-1978.28,0.00014989,2]
[337245338,1725545441315,-2067.9,0.00014989,2]
[337245339,1725545441324,-2067.9,0.00014989,2]
[337245340,1725545441334,-2067.9,0.00014989,2]
[337245341,1725545441343,-2067.9,0.00014989,2]
[337245342,1725545441352,-500.0,0.00014989,2]
[337245343,1725545441363,-500.0,0.00014989,2]
[337245344,1725545441373,-500.0,0.00014989,2]
[337245345,1725545441385,-500.0,0.00014989,2]
[337245346,1725545441394,-500.0,0.00014989,2]
[337245347,1725545441404,-500.0,0.00014989,2]
[337245348,1725545441415,-645.57,0.00014989,2]
[337245349,1725545441424,-956.03,0.00014989,2]
[337245350,1725545441433,-956.03,0.00014989,2]
[337245351,1725545441442,-956.03,0.00014989,2]
[337245352,1725545441453,-956.03,0.00014989,2]
[337245353,1725545441462,-500.0,0.00014989,2]
[337245354,1725545441472,-500.0,0.00014989,2]